lending/lending_fUSD_20250917
["ID","MTS","AMOUNT","RATE_DAILY","PERIOD"]
[385911105,1758131470234,-646.55,0.0002485,2]
[385911106,1758131470243,-500.0,0.0002485,2]
[385911107,1758131470254,-400.0,0.0002485,2]
[385911108,1758131470263,-438.7,0.0002485,2]
[385911109,1758131470273,-400.0,0.0002485,2]
[385911110,1758131470283,-400.0,0.0002485,2]
[385911111,1758131470292,-400.0,0.0002485,2]
[385911112,1758131470301,-400.0,0.0002485,2]
[385911113,1758131470310,-421.94,0.0002485,2]
[385911114,1758131470319,-400.0,0.0002485,2]
[385911115,1758131470328,-766.6,0.0002485,2]
[385911116,1758131470338,-400.0,0.0002485,2]
[385911117,1758131470347,-400.0,0.0002485,2]
[385911118,1758131470356,-706.89,0.0002485,2]
[385911119,1758131470366,-400.0,0.0002485,2]
[385911120,1758131470375,-473.1,0.0002485,2]
[385911121,1758131470384,-749.15,0.0002485,2]
[385911122,1758131470393,-400.0,0.0002485,2]
[385911123,1758131470402,-656.86,0.0002485,2]
[385911124,1758131470411,-400.0,0.0002485,2]
[385911125,1758131470420,-400.0,0.0002485,2]
[385911126,1758131470429,-400.0,0.0002485,2]
[385911127,1758131470438,-400.0,0.0002485,2]
[385911128,1758131470447,-400.0,0.0002485,2]
[385911129,1758131470457,-410.22,0.0002485,2]
[385911130,1758131470467,-400.0,0.0002485,2]
[385911131,1758131470476,-400.0,0.0002485,2]
[385911132,1758131470486,-408.98049097,0.0002485,2]
[385911133,1758131470495,-400.0,0.0002485,2]
[385911134,1758131470504,-508.08,0.0002485,2]
[385911135,1758131470514,-964.24,0.0002485,2]
[385911136,1758131470524,-400.0,0.0002485,2]
[385911137,1758131470533,-466.34,0.0002485,2]
[385911138,1758131470543,-585.64,0.0002485,2]
[385911139,1758131470552,-488.75,0.0002485,2]
[385911140,1758131470561,-400.0,0.0002485,2]
[385911141,1758131470570,-637.19,0.0002485,2]
[385911142,1758131470580,-1125.7,0.0002485,2]
[385911143,1758131470590,-484.92,0.0002485,2]
[385911144,1758131470599,-400.0,0.0002485,2]
[385911145,1758131470608,-529.65,0.0002485,2]
[385911146,1758131470618,-400.0,0.0002485,2]
[385911147,1758131470627,-3941.99,0.0002485,2]
[385911148,1758131470637,-401.11,0.0002485,2]
[385911149,1758131470646,-763.34,0.0002485,2]
[385911150,1758131470656,-400.0,0.0002485,2]
[385911151,1758131470667,-400.0,0.0002485,2]
[385911152,1758131470677,-400.0,0.0002485,2]
[385911153,1758131470686,-400.0,0.0002485,2]
[385911154,1758131470695,-400.0,0.0002485,2]
[385911155,1758131470705,-400.0,0.0002485,2]
[385911156,1758131470715,-423.2,0.0002485,2]
[385911157,1758131470725,-800.0,0.0002485,2]
[385911158,1758131470734,-591.41,0.0002485,2]
[385911159,1758131470744,-400.0,0.0002485,2]
[385911160,1758131470753,-530.36,0.0002485,2]
[385911161,1758131470763,-664.15,0.0002485,2]
[385911162,1758131470773,-409.34,0.0002485,2]
[385911163,1758131470783,-400.0,0.0002485,2]
[385911164,1758131470793,-400.0,0.0002485,2]
[385911165,1758131470803,-543.58,0.0002485,2]
[385911166,1758131470812,-606.68,0.0002485,2]
[385911167,1758131470822,-528.77,0.0002485,2]
[385911168,1758131470831,-511.5,0.0002485,2]
[385911169,1758131470841,-441.76,0.0002485,2]
[385911170,1758131470852,-405.81,0.0002485,2]
[385911171,1758131470862,-893.58,0.0002485,2]
[385911172,1758131470872,-491.22,0.0002485,2]
[385911173,1758131470881,-610.77,0.0002485,2]
[385911174,1758131470891,-481.72,0.0002485,2]
[385911175,1758131470901,-400.0,0.0002485,2]
[385911176,1758131470911,-600.14,0.0002485,2]
[385911177,1758131470921,-1142.36,0.0002485,2]
[385911178,1758131470935,-400.0,0.0002485,2]
[385911179,1758131470945,-450.52,0.0002485,2]
[385911180,1758131470955,-687.67,0.0002485,2]
[385911181,1758131470964,-603.68,0.0002485,2]
[385911182,1758131470975,-489.45,0.0002485,2]
[385911183,1758131470986,-400.0,0.0002485,2]
[385911184,1758131470997,-688.0,0.0002485,2]
[385911185,1758131471008,-500.0,0.0002485,2]
[385911186,1758131471019,-572.92,0.0002485,2]
[385911187,1758131471030,-537.91,0.0002485,2]
[385911188,1758131471040,-550.77,0.0002485,2]
[385911189,1758131471049,-671.22,0.0002485,2]
[385911190,1758131471060,-400.0,0.0002485,2]
[385911191,1758131471070,-605.67,0.0002485,2]
[385911192,1758131471079,-956.98,0.0002485,2]
[385911193,1758131471089,-672.08,0.0002485,2]
[385911194,1758131471099,-400.0,0.0002485,2]
[385911195,1758131471109,-527.21,0.0002485,2]
[385911196,1758131471118,-1363.4265208,0.00024851,2]
[385911197,1758131471129,-347.5553784,0.00024851,2]
[385911198,1758131471138,-4351.9495799,0.00024851,2]
[385911199,1758131471148,-387.49132688,0.00024851,2]
[385911200,1758131471157,-766.7715501,0.00024851,2]
[385911201,1758131471167,-1000.0,0.00024851,2]
[385911202,1758131471177,-1000.0,0.00024851,2]
[385911203,1758131471187,-1000.0,0.00024851,2]
[385911204,1758131471197,-1000.0,0.00024851,2]
[385911205,1758131471207,-1000.0,0.00024851,2]
[385911206,1758131471217,-1000.0,0.00024851,2]
[385911207,1758131471228,-1000.0,0.00024851,2]
[385911208,1758131471238,-705.821,0.00024851,2]
[385911209,1758131471247,-6258.55912893,0.00024851,2]
[385911210,1758131471259,-400.0,0.0002486,2]
[385911211,1758131471269,-400.0,0.0002486,2]
[385911212,1758131471279,-400.0,0.0002486,2]
[385911213,1758131471289,-400.0,0.0002486,2]
[385911214,1758131471299,-400.0,0.0002486,2]
[385911215,1758131471311,-450.83,0.0002486,2]
[385911216,1758131471320,-400.0,0.0002486,2]
[385911217,1758131471331,-808.45,0.0002486,2]
[385911218,1758131471340,-468.08028422,0.0002486,2]
[385911219,1758131471350,-400.0,0.0002486,2]
[385911220,1758131471360,-400.0,0.0002486,2]
[385911221,1758131471369,-460.51,0.0002486,2]
[385911222,1758131471379,-400.0,0.0002486,2]
[385911223,1758131471389,-400.0,0.0002486,2]
[385911224,1758131471398,-400.0,0.0002486,2]
[385911225,1758131471408,-400.0,0.0002486,2]
[385911226,1758131471418,-671.52,0.0002486,2]
[385911227,1758131471428,-400.0,0.0002486,2]
[385911228,1758131471437,-400.0,0.0002486,2]
[385911229,1758131471447,-682.44,0.0002486,2]
[385911230,1758131471457,-748.84,0.0002486,2]
[385911231,1758131471467,-400.0,0.0002486,2]
[385911232,1758131471477,-422.58,0.0002486,2]
[385911233,1758131471487,-916.63,0.0002486,2]
[385911234,1758131471497,-404.11702005,0.0002486,2]
[385911235,1758131471507,-405.87003688,0.0002486,2]
[385911236,1758131471516,-876.13,0.0002486,2]
[385911237,1758131471527,-400.0,0.0002486,2]
[385911238,1758131471537,-752.91,0.0002486,2]
[385911239,1758131471548,-400.0,0.0002486,2]
[385911240,1758131471557,-400.0,0.0002486,2]
[385911241,1758131471567,-673.53,0.0002486,2]
[385911242,1758131471577,-617.21,0.0002486,2]
[385911243,1758131471587,-402.4650882,0.0002486,2]
[385911244,1758131471597,-400.0,0.0002486,2]
[385911245,1758131471607,-552.13,0.0002486,2]
[385911246,1758131471617,-772.46,0.0002486,2]
[385911247,1758131471628,-400.0,0.0002486,2]
[385911248,1758131471638,-694.05,0.0002486,2]
[385911249,1758131471647,-463.11,0.0002486,2]
[385911250,1758131471658,-512.35,0.0002486,2]
[385911251,1758131471667,-400.0,0.0002486,2]
[385911252,1758131471677,-400.0,0.0002486,2]
[385911253,1758131471687,-406.51,0.0002486,2]
[385911254,1758131471697,-400.0,0.0002486,2]
[385911255,1758131471708,-807.12,0.0002486,2]
[385911256,1758131471719,-400.0,0.0002486,2]
[385911257,1758131471729,-400.0,0.0002486,2]
[385911258,1758131471739,-408.51,0.0002486,2]
[385911259,1758131471749,-400.0,0.0002486,2]
[385911260,1758131471759,-408.65440755,0.0002486,2]
[385911261,1758131471768,-400.0,0.0002486,2]
[385911262,1758131471780,-909.64,0.0002486,2]
[385911263,1758131471790,-400.0,0.0002486,2]
[385911264,1758131471800,-407.52494528,0.0002486,2]
[385911265,1758131471810,-487.21,0.0002486,2]
[385911266,1758131471820,-400.0,0.0002486,2]
[385911267,1758131471830,-400.0,0.0002486,2]
[385911268,1758131471840,-739.38,0.0002486,2]
[385911269,1758131471850,-401.74089376,0.0002486,2]
[385911270,1758131471859,-400.0,0.0002486,2]
[385911271,1758131471869,-400.0,0.0002486,2]
[385911272,1758131471879,-487.4,0.0002486,2]
[385911273,1758131471889,-402.5598942,0.0002486,2]
[385911274,1758131471899,-400.0,0.0002486,2]
[385911275,1758131471908,-400.0,0.0002486,2]
[385911276,1758131471918,-403.24135264,0.0002486,2]
[385911277,1758131471931,-403.08129437,0.0002486,2]
[385911278,1758131471941,-507.67,0.0002486,2]
[385911279,1758131471951,-400.38426363,0.0002486,2]
[385911280,1758131471963,-468.69,0.0002486,2]
[385911281,1758131471974,-465.98,0.0002486,2]
[385911282,1758131471984,-684.11,0.0002486,2]
[385911283,1758131471994,-400.0,0.0002486,2]
[385911284,1758131472003,-402.07302266,0.0002486,2]
[385911285,1758131472013,-401.73820505,0.0002486,2]
[385911286,1758131472023,-272.18788358,0.0002486,2]
[385911287,1758131472034,-400.0,0.0002486,2]
[385911288,1758131472044,-404.78440036,0.0002486,2]
[385911289,1758131472055,-400.0,0.0002486,2]
[385911290,1758131472065,-400.0,0.0002486,2]
[385911291,1758131472075,-590.87,0.0002486,2]
[385911292,1758131472085,-490.07,0.0002486,2]
[385911293,1758131472094,-400.0,0.0002486,2]
[385911294,1758131472104,-400.0,0.0002486,2]
[385911295,1758131472113,-400.0,0.0002486,2]
[385911296,1758131472123,-400.0,0.0002486,2]
[385911297,1758131472133,-402.60910608,0.0002486,2]
[385911298,1758131472143,-400.0,0.0002486,2]
[385911299,1758131472153,-400.0,0.0002486,2]
[385911300,1758131472163,-403.2379218,0.0002486,2]
[385911301,1758131472174,-400.0,0.0002486,2]
[385911302,1758131472184,-400.0,0.0002486,2]
[385911303,1758131472194,-400.0,0.0002486,2]
[385911304,1758131472204,-400.0,0.0002486,2]
[385911305,1758131472214,-400.0,0.0002486,2]
[385911306,1758131472225,-402.47480256,0.0002486,2]
[385911307,1758131472234,-400.0,0.0002486,2]
[385911308,1758131472244,-400.0,0.0002486,2]
[385911309,1758131472254,-400.0,0.0002486,2]
[385911310,1758131472264,-615.91,0.0002486,2]
[385911311,1758131472274,-400.0,0.0002486,2]
[385911312,1758131472284,-400.0,0.0002486,2]
[385911313,1758131472294,-400.0,0.0002486,2]
[385911314,1758131472304,-356.24646769,0.0002486,2]
[385911315,1758131472314,-400.0,0.0002486,2]
[385911316,1758131472324,-400.0,0.0002486,2]
[385911317,1758131472333,-400.0,0.0002486,2]
[385911318,1758131472343,-400.0,0.0002486,2]
[385911319,1758131472353,-460.04,0.0002486,2]
[385911320,1758131472362,-472.38048229,0.0002486,2]
[385911321,1758131472372,-400.0,0.0002486,2]
[385911322,1758131472381,-400.0,0.0002486,2]
[385911323,1758131472390,-444.61,0.0002486,2]
[385911324,1758131472400,-400.0,0.0002486,2]
[385911325,1758131472410,-400.0,0.0002486,2]
[385911326,1758131472419,-460.62,0.0002486,2]
[385911327,1758131472429,-400.0,0.0002486,2]
[385911328,1758131472439,-400.0,0.0002486,2]
[385911329,1758131472449,-400.0,0.0002486,2]
[385911330,1758131472460,-438.44,0.0002486,2]
[385911331,1758131472470,-557.59,0.0002486,2]
[385911332,1758131472481,-400.0,0.0002486,2]
[385911333,1758131472491,-400.0,0.0002486,2]
[385911334,1758131472502,-400.0,0.0002486,2]
[385911335,1758131472512,-400.0,0.0002486,2]
[385911336,1758131472524,-400.0,0.0002486,2]
[385911337,1758131472535,-631.33,0.0002486,2]
[385911338,1758131472545,-400.0,0.0002486,2]
[385911339,1758131472555,-720.58,0.0002486,2]
[385911340,1758131472566,-400.0,0.0002486,2]
[385911341,1758131472576,-400.0,0.0002486,2]
[385911342,1758131472587,-447.22,0.0002486,2]
[385911343,1758131472598,-400.0,0.0002486,2]
[385911344,1758131472799,-456.92,0.0002486,2]
[385911345,1758131472811,-400.0,0.0002486,2]
[385911346,1758131472821,-1127.27,0.0002486,2]
[385911347,1758131472831,-400.0,0.0002486,2]
[385911348,1758131472840,-502.01,0.0002486,2]
[385911349,1758131472852,-400.0,0.0002486,2]
[385911350,1758131472861,-867.5,0.0002486,2]
[385911351,1758131472871,-422.92,0.0002486,2]
[385911352,1758131472881,-400.0,0.0002486,2]
[385911353,1758131472892,-502.56,0.0002486,2]
[385911354,1758131472902,-492.25,0.0002486,2]
[385911355,1758131472912,-400.0,0.0002486,2]
[385911356,1758131472922,-400.0,0.0002486,2]
[385911357,1758131472933,-400.0,0.0002486,2]
[385911358,1758131472943,-400.0,0.0002486,2]
[385911359,1758131472952,-671.57,0.0002486,2]
[385911360,1758131472962,-219.32927138,0.0002486,2]
[385911361,1758131472971,-400.0,0.0002486,2]
[385911362,1758131472981,-480.06,0.0002486,2]
[385911363,1758131472991,-815.91,0.0002486,2]
[385911364,1758131473001,-400.0,0.0002486,2]
[385911365,1758131473011,-1119.25,0.0002486,2]
[385911366,1758131473020,-400.0,0.0002486,2]
[385911367,1758131473030,-400.0,0.0002486,2]
[385911368,1758131473038,-400.0,0.0002486,2]
[385911369,1758131473048,-928.99,0.0002486,2]
[385911370,1758131473058,-584.06,0.0002486,2]
[385911371,1758131473067,-509.92,0.0002486,2]
[385911372,1758131473076,-411.24547076,0.0002486,2]
[385911373,1758131473087,-400.0,0.0002486,2]
[385911374,1758131473095,-400.0,0.0002486,2]
[385911375,1758131473105,-400.0,0.0002486,2]
[385911376,1758131473115,-400.0,0.0002486,2]
[385911377,1758131473125,-1104.61,0.0002486,2]
[385911378,1758131473135,-400.0,0.0002486,2]
[385911379,1758131473145,-400.0,0.0002486,2]
[385911380,1758131473154,-400.0,0.0002486,2]
[385911381,1758131473163,-422.63,0.0002486,2]
[385911382,1758131473173,-400.0,0.0002486,2]
[385911383,1758131473183,-472.2,0.0002486,2]
[385911384,1758131473192,-626.4,0.0002486,2]
[385911385,1758131473201,-400.0,0.0002486,2]
[385911386,1758131473211,-400.0,0.0002486,2]
[385911387,1758131473221,-400.0,0.0002486,2]
[385911388,1758131473230,-400.0,0.0002486,2]
[385911389,1758131473240,-400.0,0.0002486,2]
[385911390,1758131473249,-629.4,0.0002486,2]
[385911391,1758131473259,-400.0,0.0002486,2]
[385911392,1758131473269,-457.35,0.0002486,2]
[385911393,1758131473278,-771.83,0.0002486,2]
[385911394,1758131473287,-400.0,0.0002486,2]
[385911395,1758131473296,-446.12,0.0002486,2]
[385911396,1758131473306,-400.0,0.0002486,2]
[385911397,1758131473315,-400.0,0.0002486,2]
[385911398,1758131473325,-400.0,0.0002486,2]
[385911399,1758131473334,-485.9,0.0002486,2]
[385911400,1758131473343,-400.0,0.0002486,2]
[385911401,1758131473352,-400.0,0.0002486,2]
[385911402,1758131473363,-502.41,0.0002486,2]
[385911403,1758131473373,-575.82,0.0002486,2]
[385911404,1758131473382,-572.43,0.0002486,2]
[385911405,1758131473391,-577.21,0.0002486,2]
[385911406,1758131473400,-400.0,0.0002486,2]
[385911407,1758131473409,-400.0,0.0002486,2]
[385911408,1758131473419,-609.47,0.0002486,2]
[385911409,1758131473428,-697.32,0.0002486,2]
[385911410,1758131473437,-400.0,0.0002486,2]
[385911411,1758131473446,-400.0,0.0002486,2]
[385911412,1758131473455,-534.9,0.0002486,2]
[385911413,1758131473467,-791.84,0.0002486,2]
[385911414,1758131473476,-400.0,0.0002486,2]
[385911415,1758131473486,-412.40820422,0.0002486,2]
[385911416,1758131473495,-631.56,0.0002486,2]
[385911417,1758131473504,-400.0,0.0002486,2]
[385911418,1758131473513,-400.0,0.0002486,2]
[385911419,1758131473522,-668.11,0.0002486,2]
[385911420,1758131473532,-400.0,0.0002486,2]
[385911421,1758131473541,-445.18,0.0002486,2]
[385911422,1758131473550,-264.67150717,0.0002486,2]
[385911423,1758131473558,-400.0,0.0002486,2]
[385911424,1758131473568,-400.0,0.0002486,2]
[385911425,1758131473577,-189.2278599,0.0002486,2]
[385911426,1758131473586,-400.0,0.0002486,2]
[385911427,1758131473595,-435.28,0.0002486,2]
[385911428,1758131473605,-400.0,0.0002486,2]
[385911429,1758131473614,-589.94,0.0002486,2]
[385911430,1758131473623,-400.0,0.0002486,2]
[385911431,1758131473633,-408.88,0.0002486,2]
[385911432,1758131473642,-400.0,0.0002486,2]
[385911433,1758131473654,-834.3,0.0002486,2]
[385911434,1758131473664,-400.0,0.0002486,2]
[385911435,1758131473674,-400.0,0.0002486,2]
[385911436,1758131473683,-647.06,0.0002486,2]
[385911437,1758131473693,-400.0,0.0002486,2]
[385911438,1758131473702,-1362.11,0.0002486,2]
[385911439,1758131473711,-400.0,0.0002486,2]
[385911440,1758131473720,-400.0,0.0002486,2]
[385911441,1758131473729,-400.0,0.0002486,2]
[385911442,1758131473738,-3004.05,0.0002486,2]
[385911443,1758131473747,-400.0,0.0002486,2]
[385911444,1758131473756,-623.62,0.0002486,2]
[385911445,1758131473766,-652.72,0.0002486,2]
[385911446,1758131473775,-400.0,0.0002486,2]
[385911447,1758131473784,-400.0,0.0002486,2]
[385911448,1758131473793,-400.0,0.0002486,2]
[385911449,1758131473802,-441.69,0.0002486,2]
[385911450,1758131473811,-440.33,0.0002486,2]
[385911451,1758131473822,-400.0,0.0002486,2]
[385911452,1758131473831,-617.06,0.0002486,2]
[385911453,1758131473841,-400.0,0.0002486,2]
[385911454,1758131473850,-783.59,0.0002486,2]
[385911455,1758131473862,-400.0,0.0002486,2]
[385911456,1758131473872,-400.0,0.0002486,2]
[385911457,1758131473881,-851.11,0.0002486,2]
[385911458,1758131473892,-400.0,0.0002486,2]
[385911459,1758131473902,-529.36,0.0002486,2]
[385911460,1758131473912,-850.01,0.0002486,2]
[385911461,1758131473922,-400.0,0.0002486,2]
[385911462,1758131473932,-2019.89,0.0002486,2]
[385911463,1758131473943,-400.0,0.0002486,2]
[385911464,1758131473955,-610.69,0.0002486,2]
[385911465,1758131473965,-400.0,0.0002486,2]
[385911466,1758131473976,-879.71,0.0002486,2]
[385911467,1758131473987,-400.0,0.0002486,2]
[385911468,1758131473996,-400.0,0.0002486,2]
[385911469,1758131474006,-400.0,0.0002486,2]
[385911470,1758131474016,-400.0,0.0002486,2]
[385911471,1758131474027,-400.0,0.0002486,2]
[385911472,1758131474037,-1077.56,0.0002486,2]
[385911473,1758131474049,-563.26,0.0002486,2]
[385911474,1758131474058,-1151.34,0.0002486,2]
[385911475,1758131474067,-400.0,0.0002486,2]
[385911476,1758131474076,-662.04,0.0002486,2]
[385911477,1758131474085,-770.48,0.0002486,2]
[385911478,1758131474094,-575.67,0.0002486,2]
[385911479,1758131474103,-403.04351654,0.0002486,2]
[385911480,1758131474113,-566.71,0.0002486,2]
[385911481,1758131474122,-858.88,0.0002486,2]
[385911482,1758131474131,-400.0,0.0002486,2]
[385911483,1758131474141,-429.86377411,0.0002486,2]
[385911484,1758131474150,-400.0,0.0002486,2]
[385911485,1758131474159,-400.0,0.0002486,2]
[385911486,1758131474168,-413.10719992,0.0002486,2]
[385911487,1758131474177,-400.0,0.0002486,2]
[385911488,1758131474187,-500.0,0.0002486,2]
[385911489,1758131474196,-500.0,0.00024861,2]
[385911490,1758131474205,-500.0,0.00024861,2]
[385911491,1758131474215,-178.37523157,0.00024861,2]
[385911492,1758131474223,-400.0,0.00024861,2]
[385911493,1758131474233,-400.0,0.00024861,2]
[385911494,1758131474241,-406.0063869,0.00024861,2]
[385911495,1758131474251,-400.0,0.00024861,2]
[385911496,1758131474260,-400.0,0.00024861,2]
[385911497,1758131474269,-400.0,0.00024861,2]
[385911498,1758131474280,-400.0,0.00024861,2]
[385911499,1758131474290,-400.0,0.00024861,2]
[385911500,1758131474300,-400.0,0.00024861,2]
[385911501,1758131474309,-400.0,0.00024861,2]
[385911502,1758131474318,-400.0,0.00024861,2]
[385911503,1758131474327,-400.0,0.00024861,2]
[385911504,1758131474336,-400.0,0.00024861,2]
[385911505,1758131474345,-400.0,0.00024861,2]
[385911506,1758131474354,-400.0,0.00024861,2]
[385911507,1758131474363,-400.0,0.00024861,2]
[385911508,1758131474372,-1177.74,0.00024861,2]
[385911509,1758131474381,-400.0,0.00024861,2]
[385911510,1758131474390,-400.0,0.00024861,2]
[385911511,1758131474400,-400.0,0.00024861,2]
[385911512,1758131474409,-400.0,0.00024861,2]
[385911513,1758131474418,-400.0,0.00024861,2]
[385911514,1758131474427,-400.0,0.00024861,2]
[385911515,1758131474436,-400.0,0.00024861,2]
[385911516,1758131474445,-400.0,0.00024861,2]
[385911517,1758131474454,-400.0,0.00024861,2]
[385911518,1758131474463,-400.0,0.00024861,2]
[385911519,1758131474473,-400.0,0.00024861,2]
[385911520,1758131474482,-400.0,0.00024861,2]
[385911521,1758131474491,-400.0,0.00024861,2]
[385911522,1758131474500,-525.93,0.00024861,2]
[385911523,1758131474509,-400.0,0.00024861,2]
[385911524,1758131474518,-406.03,0.00024861,2]
[385911525,1758131474528,-599.36,0.00024861,2]
[385911526,1758131474537,-400.0,0.00024861,2]
[385911527,1758131474546,-400.0,0.00024861,2]
[385911528,1758131474555,-400.0,0.00024861,2]
[385911529,1758131474564,-400.0,0.00024861,2]
[385911530,1758131474574,-400.0,0.00024861,2]
[385911531,1758131474585,-400.0,0.00024861,2]
[385911532,1758131474596,-400.0,0.00024861,2]
[385911533,1758131474608,-400.0,0.00024861,2]
[385911534,1758131474618,-400.0,0.00024861,2]
[385911535,1758131474628,-400.0,0.00024861,2]
[385911536,1758131474639,-400.0,0.00024861,2]
[385911537,1758131474650,-400.0,0.00024861,2]
[385911538,1758131474662,-400.0,0.00024861,2]
[385911539,1758131474671,-400.0,0.00024861,2]
[385911540,1758131474680,-400.0,0.00024861,2]
[385911541,1758131474689,-405.79477383,0.00024861,2]
[385911542,1758131474699,-400.0,0.00024861,2]
[385911543,1758131474708,-400.0,0.00024861,2]
[385911544,1758131474718,-400.0,0.00024861,2]
[385911545,1758131474728,-400.0,0.00024861,2]
[385911546,1758131474737,-400.0,0.00024861,2]
[385911547,1758131474747,-729.55,0.00024861,2]
[385911548,1758131474757,-400.0,0.00024861,2]
[385911549,1758131474766,-400.0,0.00024861,2]
[385911550,1758131474776,-400.0,0.00024861,2]
[385911551,1758131474786,-400.0,0.00024861,2]
[385911552,1758131474795,-400.0,0.00024861,2]
[385911553,1758131474805,-400.0,0.00024861,2]
[385911554,1758131474814,-400.0,0.00024861,2]
[385911555,1758131474824,-400.0,0.00024861,2]
[385911556,1758131474833,-418.75177677,0.00024861,2]
[385911557,1758131474843,-406.65177552,0.00024861,2]
[385911558,1758131474853,-615.12,0.00024861,2]
[385911559,1758131474862,-400.0,0.00024861,2]
[385911560,1758131474872,-400.0,0.00024861,2]
[385911561,1758131474881,-400.0,0.00024861,2]
[385911562,1758131474891,-400.0,0.00024861,2]
[385911563,1758131474901,-400.0,0.00024861,2]
[385911564,1758131474910,-400.0,0.00024861,2]
[385911565,1758131474922,-400.0,0.00024861,2]
[385911566,1758131474934,-400.0,0.00024861,2]
[385911567,1758131474946,-400.0,0.00024861,2]
[385911568,1758131474955,-1328.41,0.00024861,2]
[385911569,1758131474964,-400.0,0.00024861,2]
[385911570,1758131474974,-400.0,0.00024861,2]
[385911571,1758131474984,-400.0,0.00024861,2]
[385911572,1758131474994,-400.0,0.00024861,2]
[385911573,1758131475003,-400.0,0.00024861,2]
[385911574,1758131475013,-400.0,0.00024861,2]
[385911575,1758131475023,-400.0,0.00024861,2]
[385911576,1758131475033,-836.47,0.00024861,2]
[385911577,1758131475043,-400.0,0.00024861,2]
[385911578,1758131475053,-473.94612195,0.00024861,2]
[385911579,1758131475062,-400.0,0.00024861,2]
[385911580,1758131475073,-400.0,0.00024861,2]
[385911581,1758131475082,-400.0,0.00024861,2]
[385911582,1758131475093,-400.0,0.00024861,2]
[385911583,1758131475103,-695.12,0.00024861,2]
[385911584,1758131475112,-556.99,0.00024861,2]
[385911585,1758131475122,-400.0,0.00024861,2]
[385911586,1758131475131,-400.0,0.00024861,2]
[385911587,1758131475141,-400.0,0.00024861,2]
[385911588,1758131475150,-460.47629284,0.00024861,2]
[385911589,1758131475159,-400.0,0.00024861,2]
[385911590,1758131475168,-400.0,0.00024861,2]
[385911591,1758131475177,-400.0,0.00024861,2]
[385911592,1758131475187,-587.98,0.00024861,2]
[385911593,1758131475196,-671.85,0.00024861,2]
[385911594,1758131475205,-844.12,0.00024861,2]
[385911595,1758131475215,-400.0,0.00024861,2]
[385911596,1758131475224,-608.32,0.00024861,2]
[385911597,1758131475234,-368.43218284,0.00024861,2]
[385911598,1758131475244,-906.32,0.00024861,2]
[385911599,1758131475254,-400.0,0.00024861,2]
[385911600,1758131475263,-400.0,0.00024861,2]
[385911601,1758131475273,-400.0,0.00024861,2]
[385911602,1758131475284,-400.0,0.00024861,2]
[385911603,1758131475293,-489.07,0.00024861,2]
[385911604,1758131475303,-400.0,0.00024861,2]